[Event "DLM Youth 2024"]
[Site "Tuebingen"]
[Date "2024.10.04"]
[Round "3"]
[White "Didas, Emma"]
[Black "Krannich, Eva"]
[Result "0-1"]
[ECO "B22"]
[WhiteElo "1078"]
[BlackElo "1582"]
[Annotator "NA RC"]
[PlyCount "130"]
[EventDate "2024.10.03"]
[EventType "team-swiss"]
[EventRounds "7"]
[EventCountry "GER"]
[SourceTitle "playchess.com"]
[Source "ChessBase"]
[SourceQuality "1"]
[TimeControl "40/5400+30:1800+30"]

1. e4 {[%emt 0:00:03]} c5 {[%emt 0:00:06]} 2. c3 {[%emt 0:00:04]} d6 {[%emt 0:00:07]} 3. d4 {[%emt 0:00:13]} Qc7 {[%emt 0:00:05]} 4. Nf3 {[%emt 0:00:58]} g6 {[%emt 0:00:06]} 5. Be3 {[%emt 0:00:18]} Nd7 {[%emt 0:00:28]} 6. Be2 {[%emt 0:01:24]} Bg7 {[%emt 0:00:21]} 7. O-O {[%emt 0:00:17]} Ngf6 {[%emt 0:00:22]} 8. Nbd2 {[%emt 0:00:25]} O-O {[%emt 0:00:42]} 9. Bd3 {[%emt 0:02:26]} a6 {[%emt 0:01:13]} 10. a4 {[%emt 0:02:10]} b6 {[%emt 0:02:01]} 11. Rc1 {[%emt 0:01:19]} Bb7 {[%emt 0:00:58]} 12. b4 {[%emt 0:01:24]} Rfc8 {[%emt 0:03:29]} 13. Bf4 {[%emt 0:03:42]} h6 {[%emt 0:11:09]} 14. e5 {[%emt 0:05:01]} Bxf3 {[%emt 0:00:20]} 15. Nxf3 {[%emt 0:00:18]} Nh5 {[%emt 0:03:45]} 16. exd6 {[%emt 0:01:08]} exd6 {[%emt 0:00:07]} 17. Qd2 {[%emt 0:02:24]} Nxf4 {[%emt 0:00:36]} 18. Qxf4 {[%emt 0:00:10]} Nf6 {[%emt 0:01:43]} 19. bxc5 {[%emt 0:05:13]} dxc5 {[%emt 0:00:41]} 20. Qxc7 {[%emt 0:00:15]} Rxc7 {[%emt 0:00:10]} 21. dxc5 {[%emt 0:00:38]} Rxc5 {[%emt 0:00:20]} 22. Rfe1 {[%emt 0:02:17]} Nd5 {[%emt 0:06:00]} 23. Be4 {[%emt 0:07:31]} Rac8 {[%emt 0:00:57]} 24. Bxd5 {[%emt 0:00:56]} Rxd5 {[%emt 0:00:19]} 25. c4 {[%emt 0:01:40]} Rdc5 {[%emt 0:00:50]} 26. Nd2 {[%emt 0:00:58]} b5 {[%emt 0:00:39]} 27. axb5 {[%emt 0:00:36]} axb5 {[%emt 0:00:07]} 28. Re4 {[%emt 0:00:18]} bxc4 {[%emt 0:01:46]} 29. Rexc4 {[%emt 0:01:52]} Rxc4 {[%emt 0:01:47]} 30. Rxc4 {[%emt 0:00:28]} Rd8 {[%emt 0:00:48]} 31. Nf1 {[%emt 0:01:14]} Kf8 {[%emt 0:00:33]} 32. h3 {[%emt 0:01:38]} Rd1 {[%emt 0:01:35]} 33. Rc8+ {[%emt 0:00:20]} Ke7 {[%emt 0:00:08]} 34. Rc7+ {[%emt 0:00:18]} Ke6 {[%emt 0:00:38]} 35. g3 {[%emt 0:01:13]} Ra1 {[%emt 0:01:15]} 36. Kg2 {[%emt 0:01:13]} Ra2 {[%emt 0:01:19]} 37. Kf3 {[%emt 0:03:29]} Ra3+ {[%emt 0:00:14]} 38. Kg2 {[%emt 0:00:25]} Be5 {[%emt 0:02:13]} 39. Rb7 {[%emt 0:02:33]} Ra2 {[%emt 0:01:05]} 40. Rb3 {[%emt 0:00:50]} Bd4 {[%emt 0:00:57]} 41. Ne3 {[%emt 0:30:27]} Re2 {[%emt 0:32:02]} 42. Kf3 {[%emt 0:00:46]} Re1 {[%emt 0:00:44]} 43. Rd3 {[%emt 0:01:20]} Bxe3 {[%emt 0:01:00]} 44. Rxe3+ {[%emt 0:00:15]} Rxe3+ {[%emt 0:00:05]} 45. Kxe3 {[%emt 0:02:25]} Ke5 {[%emt 0:00:39]} 46. f4+ {[%emt 0:01:07]} Kd5 {[%emt 0:04:01]} 47. Kd3 {[%emt 0:03:10]} f6 {[%emt 0:04:31]} 48. h4 {[%emt 0:05:13]} f5 {[%emt 0:02:24]} 49. Ke3 {[%emt 0:01:15]} Kc4 {[%emt 0:02:02]} 50. Kf3 {[%emt 0:00:33]} Kd3 {[%emt 0:00:24]} 51. g4 {[%emt 0:00:07]} h5 {[%emt 0:00:55]} 52. Kg3 {[%emt 0:13:16]} Ke3 {[%emt 0:00:55]} 53. gxf5 {[%emt 0:00:53]} gxf5 {[%emt 0:00:13]} 54. Kg2 {[%emt 0:00:07]} Kxf4 {[%emt 0:00:06]} 55. Kf2 {[%emt 0:00:08]} Kg4 {[%emt 0:00:18]} 56. Ke3 {[%emt 0:00:23]} f4+ {[%emt 0:00:56]} 57. Kf2 {[%emt 0:00:24]} Kxh4 {[%emt 0:00:09]} 58. Kg2 {[%emt 0:00:52]} Kg4 {[%emt 0:00:07]} 59. Kf2 {[%emt 0:00:16]} f3 {[%emt 0:00:23]} 60. Kf1 {[%emt 0:00:31]} Kf4 {[%emt 0:00:35]} 61. Kf2 {[%emt 0:00:22]} h4 {[%emt 0:00:55]} 62. Kf1 {[%emt 0:00:09]} Kg3 {[%emt 0:00:33]} 63. Kg1 {[%emt 0:00:10]} f2+ {[%emt 0:00:07]} 64. Kf1 {[%emt 0:00:08]} h3 {[%emt 0:00:08]} 65. Ke2 {[%emt 0:00:09]} Kg2 {[%emt 0:01:46]} 0-1

[Event "DLM Youth 2024"]
[Site "Tuebingen"]
[Date "2024.10.04"]
[Round "4"]
[White "Besou, Hussain"]
[Black "Haack, Kevin"]
[Result "1-0"]
[ECO "C13"]
[WhiteElo "2345"]
[BlackElo "2305"]
[Annotator "RC"]
[PlyCount "58"]
[EventDate "2024.10.03"]
[EventType "team-swiss"]
[EventRounds "7"]
[EventCountry "GER"]
[SourceTitle "playchess.com"]
[Source "ChessBase"]
[SourceQuality "1"]
[TimeControl "40/5400+30:1800+30"]

1. e4 {[%emt 0:00:08]} e6 {[%emt 0:00:05]} 2. d4 {[%emt 0:00:06]} d5 {[%emt 0:00:03]} 3. Nc3 {[%emt 0:00:04]} Nf6 {[%emt 0:00:03]} 4. Bg5 {[%emt 0:00:07]} dxe4 {[%emt 0:00:05]} 5. Nxe4 {[%emt 0:00:05]} Be7 {[%emt 0:00:04]} 6. Bxf6 {[%emt 0:00:06]} gxf6 {[%emt 0:00:03]} 7. Nf3 {[%emt 0:00:10]} f5 {[%emt 0:00:02]} 8. Nc3 {[%emt 0:00:17]} a6 {[%emt 0:00:03]} 9. g3 {[%emt 0:00:39]} b5 {[%emt 0:00:36]} 10. Bg2 {[%emt 0:00:58]} Bb7 {[%emt 0:00:17]} 11. O-O {[%emt 0:00:22]} O-O {[%emt 0:00:18]} 12. Ne5 {[%emt 0:04:47]} Bxg2 {[%emt 0:00:38]} 13. Kxg2 {[%emt 0:00:36]} Ra7 {[%emt 0:00:02]} 14. a4 {[%emt 0:03:28]} b4 {[%emt 0:07:29]} 15. Ne2 {[%emt 0:00:15]} Qd5+ {[%emt 0:07:51]} 16. Nf3 {[%emt 0:02:19]} c5 {[%emt 0:05:03]} 17. Nf4 {[%emt 0:03:44]} Qd6 {[%emt 0:00:41]} 18. dxc5 {[%emt 0:01:20]} Qxc5 {[%emt 0:01:31]} 19. Qe2 {[%emt 0:06:56]} Rc8 {[%emt 0:08:17]} 20. Rfc1 {[%emt 0:01:59]} Bf6 {[%emt 0:13:01]} 21. Nd3 {[%emt 0:02:33]} Qc4 {[%emt 0:05:50]} 22. Qe3 {[%emt 0:20:26]} Rac7 {[%emt 0:00:53]} 23. Rab1 {[%emt 0:06:20]} Nd7 {[%emt 0:03:14]} 24. b3 {[%emt 0:14:57]} Qe4 {[%emt 0:01:46]} 25. Re1 {[%emt 0:00:55]} Qxe3 {[%emt 0:04:15]} 26. Rxe3 {[%emt 0:00:15]} a5 {[%emt 0:00:10]} 27. Nde1 {[%emt 0:01:27]} Nb6 {[%emt 0:04:48]} 28. Rd1 {[%emt 0:04:23]} Nd5 {[%emt 0:02:01]} 29. Red3 {[%emt 0:02:13]} Nc3 {[%emt 0:01:53]} 1-0

[Event "DLM Youth 2024"]
[Site "Tuebingen"]
[Date "2024.10.04"]
[Round "4"]
[White "Farokhi, Keyvan"]
[Black "Hinrichs, Paul"]
[Result "1/2-1/2"]
[ECO "D02"]
[WhiteElo "2306"]
[BlackElo "2264"]
[Annotator "RC"]
[PlyCount "99"]
[EventDate "2024.10.03"]
[EventType "team-swiss"]
[EventRounds "7"]
[EventCountry "GER"]
[SourceTitle "playchess.com"]
[Source "ChessBase"]
[SourceQuality "1"]
[TimeControl "40/5400+30:1800+30"]

1. d4 {[%emt 0:00:03]} d5 {[%emt 0:00:22]} 2. Nf3 {[%emt 0:00:09]} Nf6 {[%emt 0:00:13]} 3. c3 {[%emt 0:00:11]} Bf5 {[%emt 0:06:52]} 4. Qb3 {[%emt 0:00:00]} Qc8 {[%emt 0:02:20]} 5. c4 {[%emt 0:00:31]} dxc4 {[%emt 0:03:14]} 6. Qxc4 {[%emt 0:00:17]} e6 {[%emt 0:00:34]} 7. Nc3 {[%emt 0:00:30]} Nbd7 {[%emt 0:01:36]} 8. Nh4 {[%emt 0:00:34]} Nb6 {[%emt 0:10:28]} 9. Qb3 {[%emt 0:01:23]} Qd7 {[%emt 0:00:34]} 10. Nxf5 {[%emt 0:12:19]} exf5 {[%emt 0:00:30]} 11. e3 {[%emt 0:02:33]} c6 {[%emt 0:00:34]} 12. g3 {[%emt 0:01:38]} O-O-O {[%emt 0:02:45]} 13. a4 {[%emt 0:14:29]} Nbd5 {[%emt 0:01:28]} 14. Nxd5 {[%emt 0:01:31]} Qxd5 {[%emt 0:00:12]} 15. Qxd5 {[%emt 0:00:09]} Bb4+ {[%emt 0:03:55]} 16. Bd2 {[%emt 0:02:14]} Bxd2+ {[%emt 0:00:29]} 17. Kxd2 {[%emt 0:00:03]} cxd5 {[%emt 0:00:14]} 18. f3 {[%emt 0:09:02]} Kd7 {[%emt 0:00:46]} 19. Bd3 {[%emt 0:00:27]} g6 {[%emt 0:00:28]} 20. Ra3 {[%emt 0:01:34]} Rc8 {[%emt 0:00:55]} 21. a5 {[%emt 0:06:22]} Rc7 {[%emt 0:01:55]} 22. Rc3 {[%emt 0:00:29]} Rhc8 {[%emt 0:00:18]} 23. Rhc1 {[%emt 0:02:46]} a6 {[%emt 0:06:26]} 24. Rc5 {[%emt 0:04:11]} Kd6 {[%emt 0:01:06]} 25. b4 {[%emt 0:00:49]} Nd7 {[%emt 0:00:07]} 26. Rxc7 {[%emt 0:00:08]} Rxc7 {[%emt 0:00:01]} 27. Rb1 {[%emt 0:00:14]} Nb8 {[%emt 0:07:32]} 28. b5 {[%emt 0:00:48]} axb5 {[%emt 0:00:09]} 29. Rxb5 {[%emt 0:00:09]} Nc6 {[%emt 0:01:11]} 30. Bc2 {[%emt 0:02:07]} Rd7 {[%emt 0:03:09]} 31. Bb3 {[%emt 0:05:25]} Ne7 {[%emt 0:00:03]} 32. Rb6+ {[%emt 0:04:36]} Kc7 {[%emt 0:00:12]} 33. Kc3 {[%emt 0:02:24]} Rd6 {[%emt 0:02:45]} 34. Rb5 {[%emt 0:00:16]} b6 {[%emt 0:02:08]} 35. Kd3 {[%emt 0:08:02]} bxa5 {[%emt 0:00:33]} 36. Rxa5 {[%emt 0:00:03]} Kd7 {[%emt 0:03:25]} 37. Ra7+ {[%emt 0:00:53]} Ke8 {[%emt 0:04:00]} 38. Rb7 {[%emt 0:09:11]} h5 {[%emt 0:01:26]} 39. e4 {[%emt 0:01:44]} fxe4+ {[%emt 0:04:00]} 40. fxe4 {[%emt 0:00:06]} dxe4+ {[%emt 0:02:30]} 41. Kxe4 {[%emt 0:30:34]} Rf6 {[%emt 0:42:21]} 42. d5 {[%emt 0:00:00]} Nf5 {[%emt 0:00:00]} 43. Ba4+ {[%emt 0:00:00]} Kf8 {[%emt 0:00:00]} 44. Rb8+ {[%emt 0:00:00]} Kg7 {[%emt 0:00:00]} 45. Bc6 {[%emt 0:00:00]} h4 {[%emt 0:00:00]} 46. Ke5 {[%emt 0:00:00]} hxg3 {[%emt 0:00:00]} 47. hxg3 {[%emt 0:00:00]} Nxg3 {[%emt 0:00:00]} 48. d6 {[%emt 0:00:49]} Re6+ {[%emt 0:00:00]} 49. Kd5 {[%emt 0:00:08]} Nf5 {[%emt 0:00:00]} 50. Rd8 {[%emt 0:02:24]} 1/2-1/2

[Event "DLM Youth 2024"]
[Site "Tuebingen"]
[Date "2024.10.04"]
[Round "4"]
[White "Lutz, Ruben"]
[Black "Weihrauch, Jakob"]
[Result "1-0"]
[ECO "A46"]
[WhiteElo "2270"]
[BlackElo "2264"]
[Annotator "RC"]
[PlyCount "53"]
[EventDate "2024.10.03"]
[EventType "team-swiss"]
[EventRounds "7"]
[EventCountry "GER"]
[SourceTitle "playchess.com"]
[Source "ChessBase"]
[SourceQuality "1"]
[TimeControl "40/5400+30:1800+30"]

1. d4 {[%emt 0:00:02]} Nf6 {[%emt 0:00:10]} 2. Nf3 {[%emt 0:00:06]} e6 {[%emt 0:00:05]} 3. Bg5 {[%emt 0:00:06]} h6 {[%emt 0:00:22]} 4. Bxf6 {[%emt 0:00:06]} Qxf6 {[%emt 0:00:05]} 5. e4 {[%emt 0:00:04]} d6 {[%emt 0:00:29]} 6. c3 {[%emt 0:00:47]} Nd7 {[%emt 0:01:00]} 7. Bd3 {[%emt 0:00:54]} g6 {[%emt 0:03:40]} 8. Nbd2 {[%emt 0:00:17]} a6 {[%emt 0:00:14]} 9. O-O {[%emt 0:01:07]} Bg7 {[%emt 0:01:46]} 10. Re1 {[%emt 0:01:11]} Qe7 {[%emt 0:00:43]} 11. a4 {[%emt 0:01:09]} b6 {[%emt 0:00:12]} 12. Qe2 {[%emt 0:05:22]} Bb7 {[%emt 0:01:38]} 13. Nc4 {[%emt 0:01:18]} O-O {[%emt 0:02:28]} 14. Ne3 {[%emt 0:00:40]} c6 {[%emt 0:03:39]} 15. h4 {[%emt 0:05:55]} e5 {[%emt 0:09:35]} 16. dxe5 {[%emt 0:13:16]} Nxe5 {[%emt 0:05:13]} 17. Nxe5 {[%emt 0:00:07]} Bxe5 {[%emt 0:04:24]} 18. h5 {[%emt 0:05:13]} Bg7 {[%emt 0:05:37]} 19. Qg4 {[%emt 0:07:29]} Bc8 {[%emt 0:12:47]} 20. Qg3 {[%emt 0:00:05]} Qe5 {[%emt 0:07:27]} 21. Qxe5 {[%emt 0:05:32]} dxe5 {[%emt 0:00:47]} 22. Bc4 {[%emt 0:02:50]} Kh7 {[%emt 0:09:31]} 23. Red1 {[%emt 0:07:58]} b5 {[%emt 0:07:46]} 24. Bb3 {[%emt 0:04:13]} bxa4 {[%emt 0:00:51]} 25. Bxa4 {[%emt 0:02:17]} c5 {[%emt 0:00:11]} 26. Bc6 {[%emt 0:02:46]} Rb8 {[%emt 0:00:31]} 27. Nc4 {[%emt 0:00:43]} 1-0

[Event "DLM Youth 2024"]
[Site "Tuebingen"]
[Date "2024.10.04"]
[Round "4"]
[White "Sydykov, Bayastan"]
[Black "Gallasch, Jonas"]
[Result "1/2-1/2"]
[ECO "B18"]
[WhiteElo "2268"]
[BlackElo "2291"]
[Annotator "RC"]
[PlyCount "40"]
[EventDate "2024.10.03"]
[EventType "team-swiss"]
[EventRounds "7"]
[EventCountry "GER"]
[SourceTitle "playchess.com"]
[Source "ChessBase"]
[SourceQuality "1"]
[TimeControl "40/5400+30:1800+30"]

1. e4 {[%emt 0:00:05]} c6 {[%emt 0:00:13]} 2. d4 {[%emt 0:00:05]} d5 {[%emt 0:00:04]} 3. Nd2 {[%emt 0:00:10]} dxe4 {[%emt 0:00:06]} 4. Nxe4 {[%emt 0:00:04]} Bf5 {[%emt 0:00:17]} 5. Ng3 {[%emt 0:00:05]} Bg6 {[%emt 0:00:04]} 6. Nh3 {[%emt 0:00:04]} Nf6 {[%emt 0:00:46]} 7. Nf4 {[%emt 0:00:21]} e5 {[%emt 0:00:12]} 8. Nxg6 {[%emt 0:00:05]} hxg6 {[%emt 0:00:04]} 9. dxe5 {[%emt 0:00:14]} Qa5+ {[%emt 0:00:06]} 10. Bd2 {[%emt 0:00:18]} Qxe5+ {[%emt 0:00:06]} 11. Qe2 {[%emt 0:00:15]} Bd6 {[%emt 0:06:42]} 12. O-O-O {[%emt 0:05:04]} Qxe2 {[%emt 0:06:43]} 13. Bxe2 {[%emt 0:00:12]} Nbd7 {[%emt 0:02:19]} 14. Bf3 {[%emt 0:25:31]} O-O-O {[%emt 0:06:30]} 15. Ne4 {[%emt 0:21:23]} Nxe4 {[%emt 0:10:02]} 16. Bxe4 {[%emt 0:00:02]} Rh4 {[%emt 0:00:09]} 17. Bf3 {[%emt 0:03:13]} Bf4 {[%emt 0:00:34]} 18. g3 {[%emt 0:10:06]} Bxd2+ {[%emt 0:01:06]} 19. Rxd2 {[%emt 0:00:07]} Rhh8 {[%emt 0:00:54]} 20. h4 {[%emt 0:02:05]} Nf6 {[%emt 0:01:42]} 1/2-1/2

[Event "DLM Youth 2024"]
[Site "Tuebingen"]
[Date "2024.10.04"]
[Round "4"]
[White "Klaska, Philipp Leon"]
[Black "Baranyai-Molnar, Adam"]
[Result "1/2-1/2"]
[ECO "B40"]
[WhiteElo "2263"]
[BlackElo "2179"]
[Annotator "RC"]
[PlyCount "54"]
[EventDate "2024.10.03"]
[EventType "team-swiss"]
[EventRounds "7"]
[EventCountry "GER"]
[SourceTitle "playchess.com"]
[Source "ChessBase"]
[SourceQuality "1"]
[TimeControl "40/5400+30:1800+30"]

1. e4 {[%emt 0:00:10]} c5 {[%emt 0:00:03]} 2. Nf3 {[%emt 0:00:06]} e6 {[%emt 0:00:04]} 3. g3 {[%emt 0:00:09]} d5 {[%emt 0:00:11]} 4. exd5 {[%emt 0:00:10]} exd5 {[%emt 0:00:04]} 5. d4 {[%emt 0:00:21]} Nf6 {[%emt 0:00:39]} 6. Bg2 {[%emt 0:00:27]} Be7 {[%emt 0:00:20]} 7. O-O {[%emt 0:00:30]} O-O {[%emt 0:00:07]} 8. Nc3 {[%emt 0:01:01]} Nc6 {[%emt 0:00:32]} 9. dxc5 {[%emt 0:01:13]} d4 {[%emt 0:03:08]} 10. Na4 {[%emt 0:01:08]} Bg4 {[%emt 0:01:10]} 11. b3 {[%emt 0:25:43]} Qd7 {[%emt 0:01:29]} 12. Re1 {[%emt 0:02:12]} Rad8 {[%emt 0:03:02]} 13. Bb2 {[%emt 0:14:52]} Qf5 {[%emt 0:12:22]} 14. Qd3 {[%emt 0:05:50]} Rfe8 {[%emt 0:01:17]} 15. Qxf5 {[%emt 0:07:44]} Bxf5 {[%emt 0:00:05]} 16. Rac1 {[%emt 0:00:36]} Bf8 {[%emt 0:17:49]} 17. Rxe8 {[%emt 0:11:17]} Nxe8 {[%emt 0:00:06]} 18. Nh4 {[%emt 0:04:03]} Bg4 {[%emt 0:01:22]} 19. h3 {[%emt 0:03:47]} Be2 {[%emt 0:02:16]} 20. Bxc6 {[%emt 0:03:37]} bxc6 {[%emt 0:00:08]} 21. Nf5 {[%emt 0:02:18]} Bb5 {[%emt 0:00:07]} 22. Nxd4 {[%emt 0:00:36]} Bxa4 {[%emt 0:00:08]} 23. bxa4 {[%emt 0:00:19]} Bxc5 {[%emt 0:00:13]} 24. Nb3 {[%emt 0:00:39]} Bb6 {[%emt 0:03:02]} 25. a5 {[%emt 0:01:32]} Bc7 {[%emt 0:00:05]} 26. Bd4 {[%emt 0:01:16]} a6 {[%emt 0:01:05]} 27. Bb6 {[%emt 0:01:42]} Rb8 {[%emt 0:11:05]} 1/2-1/2

[Event "DLM Youth 2024"]
[Site "Tuebingen"]
[Date "2024.10.04"]
[Round "4"]
[White "Nechitaylo, Nikita"]
[Black "Uhlmann, Tim"]
[Result "1/2-1/2"]
[ECO "A81"]
[WhiteElo "2252"]
[BlackElo "2067"]
[Annotator "RC"]
[PlyCount "21"]
[EventDate "2024.10.03"]
[EventType "team-swiss"]
[EventRounds "7"]
[EventCountry "GER"]
[SourceTitle "playchess.com"]
[Source "ChessBase"]
[SourceQuality "1"]
[TimeControl "40/5400+30:1800+30"]

1. d4 {[%emt 0:00:11]} f5 {[%emt 0:00:06]} 2. Nf3 {[%emt 0:01:48]} Nf6 {[%emt 0:00:12]} 3. g3 {[%emt 0:00:07]} b6 {[%emt 0:00:16]} 4. Bg2 {[%emt 0:00:22]} Bb7 {[%emt 0:00:08]} 5. b3 {[%emt 0:03:22]} e6 {[%emt 0:00:39]} 6. Bb2 {[%emt 0:01:12]} Be7 {[%emt 0:00:38]} 7. Nbd2 {[%emt 0:00:52]} O-O {[%emt 0:00:17]} 8. O-O {[%emt 0:00:20]} Ne4 {[%emt 0:01:29]} 9. Nxe4 {[%emt 0:04:50]} Bxe4 {[%emt 0:00:50]} 10. Nd2 {[%emt 0:03:22]} Bxg2 {[%emt 0:01:07]} 11. Kxg2 {[%emt 0:00:02]} 1/2-1/2

[Event "DLM Youth 2024"]
[Site "Tuebingen"]
[Date "2024.10.04"]
[Round "4"]
[White "Semling, Johannes"]
[Black "Pubantz, Jan"]
[Result "0-1"]
[ECO "A11"]
[WhiteElo "2206"]
[BlackElo "2318"]
[Annotator "RC"]
[PlyCount "118"]
[EventDate "2024.10.03"]
[EventType "team-swiss"]
[EventRounds "7"]
[EventCountry "GER"]
[SourceTitle "playchess.com"]
[Source "ChessBase"]
[SourceQuality "1"]
[TimeControl "40/5400+30:1800+30"]

1. c4 {[%emt 0:00:20]} c6 {[%emt 0:00:13]} 2. Nf3 {[%emt 0:00:09]} d5 {[%emt 0:00:03]} 3. e3 {[%emt 0:00:16]} Nf6 {[%emt 0:00:43]} 4. Nc3 {[%emt 0:00:16]} e6 {[%emt 0:00:08]} 5. b3 {[%emt 0:00:30]} Bd6 {[%emt 0:00:18]} 6. Bb2 {[%emt 0:00:29]} O-O {[%emt 0:00:20]} 7. Be2 {[%emt 0:00:45]} dxc4 {[%emt 0:00:17]} 8. bxc4 {[%emt 0:01:17]} e5 {[%emt 0:00:15]} 9. Qc2 {[%emt 0:01:57]} Re8 {[%emt 0:02:13]} 10. d4 {[%emt 0:04:27]} exd4 {[%emt 0:03:42]} 11. Nxd4 {[%emt 0:02:35]} Na6 {[%emt 1:20:26]} 12. Rd1 {[%emt 0:00:30]} Qc7 {[%emt 0:00:30]} 13. h3 {[%emt 0:00:30]} Bd7 {[%emt 0:00:30]} 14. O-O {[%emt 0:00:30]} Nc5 {[%emt 0:00:30]} 15. Bf3 {[%emt 0:00:30]} Rad8 {[%emt 0:00:30]} 16. Rd2 {[%emt 0:00:30]} Be5 {[%emt 0:00:30]} 17. Rfd1 {[%emt 0:00:30]} Ne6 {[%emt 0:00:30]} 18. Nxe6 {[%emt 0:00:30]} Bxe6 {[%emt 0:00:30]} 19. Rxd8 {[%emt 0:00:30]} Rxd8 {[%emt 0:00:30]} 20. Rxd8+ {[%emt 0:00:30]} Qxd8 {[%emt 0:00:30]} 21. Ne4 {[%emt 0:00:30]} Bxb2 {[%emt 0:00:30]} 22. Qxb2 {[%emt 0:00:30]} Nxe4 {[%emt 0:00:30]} 23. Bxe4 {[%emt 0:00:30]} Qd1+ {[%emt 0:00:30]} 24. Kh2 {[%emt 0:00:30]} Qd6+ {[%emt 0:00:30]} 25. g3 {[%emt 0:00:30]} b6 {[%emt 0:00:30]} 26. Qc2 {[%emt 0:00:30]} g6 {[%emt 0:00:30]} 27. Qa4 {[%emt 0:00:30]} c5 {[%emt 0:00:30]} 28. Kg2 {[%emt 0:00:30]} Kg7 {[%emt 0:00:30]} 29. g4 {[%emt 0:00:30]} h5 {[%emt 0:00:30]} 30. Bf3 {[%emt 0:00:30]} Qd3 {[%emt 0:00:30]} 31. Qxa7 {[%emt 0:00:30]} Bxc4 {[%emt 0:00:30]} 32. Qxb6 {[%emt 0:00:30]} Qf1+ {[%emt 0:00:30]} 33. Kg3 {[%emt 0:00:30]} Qg1+ {[%emt 0:00:30]} 34. Kf4 {[%emt 0:00:30]} Qh2+ {[%emt 0:00:30]} 35. Ke4 {[%emt 0:00:30]} Qxh3 {[%emt 0:00:30]} 36. Qxc5 {[%emt 0:00:30]} hxg4 {[%emt 0:00:30]} 37. Qd4+ {[%emt 0:00:30]} Kg8 {[%emt 0:00:30]} 38. Qxc4 {[%emt 0:00:30]} Qxf3+ {[%emt 0:00:30]} 39. Kd3 {[%emt 0:00:30]} Qd1+ {[%emt 0:00:30]} 40. Ke4 {[%emt 0:00:30]} Qf3+ {[%emt 0:00:30]} 41. Kd3 {[%emt 0:30:30]} Qxf2 {[%emt 0:30:30]} 42. Qxg4 {[%emt 0:00:30]} Qxa2 {[%emt 0:00:30]} 43. Qc8+ {[%emt 0:00:30]} Kg7 {[%emt 0:00:30]} 44. Qc3+ {[%emt 0:00:30]} Kh7 {[%emt 0:00:30]} 45. Ke4 {[%emt 0:00:30]} Qf2 {[%emt 0:00:30]} 46. Qc8 {[%emt 0:00:30]} Qf6 {[%emt 0:00:30]} 47. Kd3 {[%emt 0:00:30]} Qf1+ {[%emt 0:00:30]} 48. Kd4 {[%emt 0:00:30]} Kg7 {[%emt 0:00:30]} 49. e4 {[%emt 0:00:30]} Qf4 {[%emt 0:00:30]} 50. Kd3 {[%emt 0:00:30]} g5 {[%emt 0:00:30]} 51. Qc3+ {[%emt 0:00:30]} Qf6 {[%emt 0:00:30]} 52. Qc8 {[%emt 0:00:30]} Qf3+ {[%emt 0:00:30]} 53. Kd4 {[%emt 0:00:30]} g4 {[%emt 0:00:30]} 54. e5 {[%emt 0:00:30]} g3 {[%emt 0:00:30]} 55. Qh3 {[%emt 0:00:30]} Qf4+ {[%emt 0:00:30]} 56. Kd5 {[%emt 0:00:30]} Qg5 {[%emt 0:00:30]} 57. Qg2 {[%emt 0:00:30]} f6 {[%emt 0:00:30]} 58. Ke4 {[%emt 0:00:30]} Qxe5+ {[%emt 0:00:30]} 59. Kd3 {[%emt 0:00:30]} Kg6 {[%emt 0:00:30]} 0-1

[Event "DLM Youth 2024"]
[Site "Tuebingen"]
[Date "2024.10.04"]
[Round "4"]
[White "Nunez Gregoire, Daniel"]
[Black "Sheng, Ming"]
[Result "1/2-1/2"]
[ECO "D41"]
[WhiteElo "2154"]
[BlackElo "2007"]
[Annotator "RC"]
[PlyCount "108"]
[EventDate "2024.10.03"]
[EventType "team-swiss"]
[EventRounds "7"]
[EventCountry "GER"]
[SourceTitle "playchess.com"]
[Source "ChessBase"]
[SourceQuality "1"]
[TimeControl "40/5400+30:1800+30"]

1. d4 {[%emt 0:00:03]} d5 {[%emt 0:00:03]} 2. c4 {[%emt 0:00:01]} e6 {[%emt 0:00:06]} 3. Nc3 {[%emt 0:00:04]} Nf6 {[%emt 0:00:03]} 4. cxd5 {[%emt 0:00:20]} Nxd5 {[%emt 0:00:04]} 5. Nf3 {[%emt 0:00:34]} c5 {[%emt 0:00:10]} 6. e4 {[%emt 0:00:24]} Nxc3 {[%emt 0:00:07]} 7. bxc3 {[%emt 0:00:01]} cxd4 {[%emt 0:00:13]} 8. cxd4 {[%emt 0:00:11]} Bb4+ {[%emt 0:00:19]} 9. Bd2 {[%emt 0:00:11]} Bxd2+ {[%emt 0:00:04]} 10. Qxd2 {[%emt 0:00:01]} O-O {[%emt 0:00:11]} 11. Bc4 {[%emt 0:00:56]} Nd7 {[%emt 0:00:21]} 12. O-O {[%emt 0:01:02]} b6 {[%emt 0:00:15]} 13. d5 {[%emt 0:01:41]} Nc5 {[%emt 0:01:01]} 14. Qe3 {[%emt 0:02:04]} exd5 {[%emt 0:08:11]} 15. Bxd5 {[%emt 0:00:20]} Bb7 {[%emt 0:00:08]} 16. Rfd1 {[%emt 0:04:17]} Bxd5 {[%emt 0:04:18]} 17. Rxd5 {[%emt 0:00:36]} Qe7 {[%emt 0:02:07]} 18. Re1 {[%emt 0:07:48]} Rfe8 {[%emt 0:01:03]} 19. e5 {[%emt 0:15:44]} Rad8 {[%emt 0:05:21]} 20. Red1 {[%emt 0:14:20]} Rxd5 {[%emt 0:01:20]} 21. Rxd5 {[%emt 0:00:01]} Qe6 {[%emt 0:05:12]} 22. Qd2 {[%emt 0:10:01]} h6 {[%emt 0:01:42]} 23. h3 {[%emt 0:00:38]} Rc8 {[%emt 0:04:30]} 24. Rd4 {[%emt 0:04:07]} Qe8 {[%emt 0:13:08]} 25. Kh2 {[%emt 0:02:18]} Ne6 {[%emt 0:03:18]} 26. Rd6 {[%emt 0:09:27]} Qa4 {[%emt 0:02:25]} 27. Nd4 {[%emt 0:02:42]} Nxd4 {[%emt 0:22:03]} 28. Rxd4 {[%emt 0:00:30]} Qc2 {[%emt 0:01:08]} 29. Qf4 {[%emt 0:01:47]} Qxa2 {[%emt 0:01:02]} 30. Ra4 {[%emt 0:04:21]} Qd5 {[%emt 0:04:48]} 31. Rxa7 {[%emt 0:02:12]} Re8 {[%emt 0:00:40]} 32. f3 {[%emt 0:03:06]} g5 {[%emt 0:01:59]} 33. Qf6 {[%emt 0:01:41]} Qxe5+ {[%emt 0:00:11]} 34. Qxe5 {[%emt 0:00:02]} Rxe5 {[%emt 0:00:22]} 35. Rb7 {[%emt 0:00:16]} b5 {[%emt 0:00:49]} 36. Rb6 {[%emt 0:00:05]} Kg7 {[%emt 0:00:11]} 37. Kg3 {[%emt 0:00:05]} Rf5 {[%emt 0:00:35]} 38. h4 {[%emt 0:00:26]} Rc5 {[%emt 0:01:29]} 39. hxg5 {[%emt 0:00:07]} hxg5 {[%emt 0:00:09]} 40. f4 {[%emt 0:01:47]} gxf4+ {[%emt 0:01:29]} 41. Kxf4 {[%emt 0:30:10]} Rc4+ {[%emt 0:30:45]} 42. Kf3 {[%emt 0:01:18]} b4 {[%emt 0:00:10]} 43. g4 {[%emt 0:01:37]} Rd4 {[%emt 0:02:11]} 44. g5 {[%emt 0:00:41]} Rc4 {[%emt 0:00:18]} 45. Kf2 {[%emt 0:01:27]} Rc2+ {[%emt 0:00:33]} 46. Kg3 {[%emt 0:00:13]} Rc3+ {[%emt 0:00:12]} 47. Kg4 {[%emt 0:00:22]} b3 {[%emt 0:00:25]} 48. Kf5 {[%emt 0:00:25]} Rc5+ {[%emt 0:01:01]} 49. Kg4 {[%emt 0:00:08]} Rc4+ {[%emt 0:03:47]} 50. Kf5 {[%emt 0:00:13]} Rc3 {[%emt 0:00:41]} 51. g6 {[%emt 0:00:47]} Rf3+ {[%emt 0:02:49]} 52. Ke4 {[%emt 0:00:29]} Rf6 {[%emt 0:03:15]} 53. Rxf6 {[%emt 0:00:23]} Kxf6 {[%emt 0:00:35]} 54. gxf7 {[%emt 0:00:01]} Kxf7 {[%emt 0:00:33]} 1/2-1/2